[Event "9. Korbacher Open 2017"]
[Site "Korbach"]
[Date "2017.10.19"]
[Round "1"]
[White "Van der Meiden, Dirk"]
[Black "Simukov, Erik"]
[Result "1-0"]
[ECO "C47"]
[WhiteElo "1958"]
[BlackElo "1621"]
[Annotator "NA RC"]
[PlyCount "99"]
[EventDate "2017.??.??"]
[EventType "swiss"]
[EventCountry "GER"]
[SourceTitle "playchess.com"]
[Source "ChessBase"]
[SourceQuality "1"]
[TimeControl "40/5400+30:1800+30"]

{[%evp 9,99,0,32767,32767,32767,32767,27,20,43,16,75,110,76,35,57,59,62,59,77,4,11,4,113,122,127,120,203,229,216,132,202,187,32767,75,32767,68,62,62,63,64,78,75,32767,68,143,70,68,16,91,98,136,38,31,13,72,-80,-98,-100,0,-276,-275,-390,-276,-273,-264,-264,102,-339,-777,-169,1353,32767,32767,32767,32767,32767,32767,32767,32767,29984,29985,29986,29986,12847,29988,29989,29989,29990,29990,29990,29990,29989]} 1. e4 {[%emt 0:00:00]} e5 {[%emt 0:00:12]} 2. Nf3 {[%emt 0:00:00]} Nc6 {[%emt 0:00:18]} 3. Nc3 {[%emt 0:00:00]} Nf6 {[%emt 0:00:47]} 4. d4 {[%emt 0:00:14]} exd4 {[%emt 0:01:17]} 5. Nxd4 {[%emt 0:00:18]} Bb4 {[%emt 0:01:39]} 6. Nxc6 {[%emt 0:00:33]} bxc6 {[%emt 0:00:28]} 7. Bd3 {[%emt 0:00:23]} Qe7 {[%emt 0:07:06]} 8. O-O {[%emt 0:00:27]} d6 {[%emt 0:00:44] C47: Scotch Four Knights and Four Knights with 4 g3} 9. h3 {[%emt 0:03:36]} h5 $146 {[%emt 0:11:57]} (9... O-O $11 {remains equal.}) ({Predecessor:} 9... Nd7 10. Na4 O-O 11. a3 Ba5 12. f4 Bb6+ 13. Nxb6 axb6 14. Be3 c5 15. Re1 Bb7 16. Bf2 {½-½ (61) Migot,T (2284)-Semcesen,D (2479) Cappelle-la-Grande 2013}) 10. Bg5 {[%emt 0:02:20]} Qe5 {[%emt 0:02:40]} 11. Qd2 {[%emt 0:03:28]} Be6 {[%emt 0:04:50]} 12. Rfe1 {[%emt 0:13:09]} Nd7 {[%emt 0:15:42]} 13. Be3 {[%emt 0:04:49]} f6 {[%emt 0:16:53]} 14. a3 {[%emt 0:04:56]} ({White should play} 14. Ba6 $16) 14... Bxc3 $1 {[%emt 0:07:56]} 15. bxc3 {[%emt 0:00:21]} Nb6 {[%emt 0:00:12]} (15... Qa5 $11) 16. f4 {[%emt 0:01:50]} Qa5 {[%emt 0:00:06] [#]} 17. e5 $1 {[%emt 0:00:52]} O-O-O {[%emt 0:03:20]} (17... dxe5 $16 18. fxe5 f5) 18. exf6 {[%emt 0:01:59]} gxf6 {[%emt 0:00:33]} 19. Bd4 {[%emt 0:02:25]} Rde8 {[%emt 0:05:01]} (19... Bd5 $16) 20. Bxf6 {[%emt 0:03:29]} Rhg8 {[%emt 0:00:09] [#]} 21. Bd4 {[%emt 0:03:41]} (21. Bh7 $1 $18 {[%cal Rh7g8]} Qc5+ 22. Kh2 (22. Bd4 Qd5 $18)) 21... c5 {[%emt 0:03:32] [#]} 22. Bf2 $2 {[%emt 0:08:55]} ({White has to play} 22. Rxe6 $1 $18 {[%mdl 512]} cxd4 (22... Rxe6 23. Bf5) 23. Qe2) 22... c4 {[%emt 0:01:37]} 23. Bf1 {[%emt 0:04:26]} Qf5 {[%emt 0:01:06]} 24. Kh2 {[%emt 0:23:09]} Bd5 {[%emt 0:06:19]} 25. Rxe8+ {[%emt 0:01:26]} Rxe8 {[%emt 0:00:07]} 26. Rd1 {[%emt 0:00:37]} c5 {[%emt 0:02:48]} (26... Bb7 $14) 27. a4 {[%emt 0:00:49]} ({White should play} 27. Bh4 $16) 27... a5 {[%emt 0:00:40]} 28. Bg3 {[%emt 0:05:59]} (28. Bh4 $16) 28... Re4 {[%emt 0:01:06]} 29. Be2 {[%emt 0:00:52]} Re6 {[%emt 0:01:13]} 30. Rf1 {[%emt 0:02:22]} (30. Bh4 $16) 30... Nxa4 {[%emt 0:01:42]} 31. Ra1 {[%emt 0:00:36]} Nxc3 {[%emt 0:00:24]} 32. Bf3 {[%emt 0:01:37] [#]} (32. Bxc4 $1 $14 {was the only good move.} Bxc4 33. Qxc3) 32... Bxf3 $1 {[%emt 0:00:59]} 33. Qxc3 {[%emt 0:00:04]} Bd5 {[%emt 0:00:25]} (33... Bc6 $17 34. Qxc4 Qe4 35. Qxe4 Rxe4) 34. Re1 $2 {[%emt 0:04:27]} (34. Qh8+ $11 {and White is okay.} Kd7 35. Rxa5) 34... Rxe1 {[%emt 0:00:43]} 35. Qxe1 {[%emt 0:00:02]} (35. Bxe1 {was forced.} Qxf4+ 36. Qg3 Qxg3+ 37. Kxg3) 35... Qe4 {[%emt 0:00:25]} 36. Qf2 {[%emt 0:00:44]} a4 {[%emt 0:00:11]} 37. Bh4 {[%emt 0:01:31]} Qxg2+ $2 {[%emt 0:01:16]} (37... a3 $19 38. Bf6 Qf5) 38. Qxg2 {[%emt 0:00:05]} Bxg2 {[%emt 0:00:04]} 39. Kxg2 {[%emt 0:00:27]} d5 $4 {[%emt 0:00:08]} (39... a3 $19 40. Bf6 d5) 40. Be7 {[%emt 0:00:07]} d4 {[%emt 0:31:01]} 41. Bxc5 {[%emt 0:30:21]} d3 {[%emt 0:00:07]} 42. cxd3 {[%emt 0:00:26]} cxd3 {[%emt 0:00:22]} 43. Kf2 {[%emt 0:00:20]} Kd7 {[%emt 0:01:34]} 44. Ke3 {[%emt 0:00:09]} Kc6 {[%emt 0:01:21]} 45. Ba3 {[%emt 0:00:20]} Kd5 {[%emt 0:01:26]} 46. Kxd3 {[%emt 0:00:07]} Ke6 {[%emt 0:00:07]} 47. Ke4 {[%emt 0:00:05]} Kf6 {[%emt 0:00:19]} 48. f5 {[%emt 0:00:06]} Kf7 {[%emt 0:00:59]} 49. Kf4 {[%emt 0:00:19]} Kf6 {[%emt 0:00:12]} 50. Bb2+ {[%emt 0:00:03]} 1-0

[Event "9. Korbacher Open 2017"]
[Site "Korbach"]
[Date "2017.10.19"]
[Round "1"]
[White "Dudink, Bas"]
[Black "Hildebrand, Georg"]
[Result "1-0"]
[ECO "A40"]
[WhiteElo "1951"]
[BlackElo "1477"]
[Annotator "NA"]
[PlyCount "119"]
[EventDate "2017.??.??"]
[EventType "swiss"]
[EventCountry "GER"]
[SourceTitle "playchess.com"]
[Source "ChessBase"]
[SourceQuality "1"]
[TimeControl "40/5400+30:1800+30"]

{[%evp 9,119,68,66,64,80,59,32767,100,32767,64,85,71,68,68,95,63,50,40,49,53,139,104,131,127,131,113,201,106,99,81,169,134,167,83,113,32767,32767,81,32767,83,32767,89,104,74,69,77,164,181,691,718,739,759,772,819,1188,570,753,847,842,825,860,908,32767,1191,846,32767,1186,1974,32767,6027,6714,29953,5697,7720,6602,29982,29983,29988,29988,29989,29991,29992,29992,29992,32767,29993,32767,32767,32767,29992,29992,29993,29993,29994,29994,29992,29992,29992,29992,29993,29993,29994,29995,29995,29995,29996,29996,29997,29997,1830,29998,29999]} 1. d4 {[%emt 0:00:00]} b6 {[%emt 0:01:03]} 2. c4 {[%emt 0:00:00]} Bb7 {[%emt 0:00:24]} 3. Nc3 {[%emt 0:00:09]} e6 {[%emt 0:00:36]} 4. a3 {[%emt 0:02:34]} Be7 {[%emt 0:00:19] A40: Unusual replies to 1 d4} (4... f5 5. d5 Nf6 6. g3 Bd6 7. Bg2 a5 8. Nh3 O-O 9. O-O Na6 10. e4 Be5 11. exf5 Bxc3 12. bxc3 exf5 13. Be3 Ne4 14. Bxe4 fxe4 {1-0 (36) Navara,D (2737)-Hou,Y (2666) Biel 2017}) 5. e4 {[%emt 0:00:49]} d6 {[%emt 0:02:24]} 6. Nf3 {[%emt 0:02:04]} h6 $146 {[%emt 0:01:18]} ({Predecessor:} 6... Nd7 7. Bd3 Ngf6 8. h3 a6 9. O-O O-O 10. Re1 e5 11. d5 Re8 12. Be3 {1-0 (47) Zschischang,M (2061)-Katte,I (1931) Halle 2005}) 7. Bd3 {[%emt 0:02:05]} a6 {[%emt 0:01:42]} 8. O-O {[%emt 0:01:08]} Nd7 {[%emt 0:01:46]} 9. Be3 {[%emt 0:06:32]} Ngf6 {[%emt 0:04:08]} 10. Nd2 {[%emt 0:03:33]} Nh7 {[%emt 0:02:14]} 11. f4 {[%emt 0:00:37]} c5 {[%emt 0:03:30]} 12. Nf3 {[%emt 0:15:20]} cxd4 {[%emt 0:09:03]} 13. Bxd4 {[%emt 0:00:27]} Nhf6 {[%emt 0:04:14]} 14. Qe2 {[%emt 0:05:47]} Nc5 {[%emt 0:03:08] [#]} (14... O-O $14) 15. Bc2 $1 {[%emt 0:01:31]} O-O {[%emt 0:06:05] [#]} 16. Rad1 $1 {[%emt 0:00:34]} Qc7 {[%emt 0:02:12]} 17. e5 {[%emt 0:05:42]} Ne8 {[%emt 0:03:21]} (17... dxe5 $16 {is a better defense.} 18. fxe5 (18. Bxe5 Qc8 $16) 18... Nh7) 18. Rd2 {[%emt 0:09:44]} (18. b4 $18) 18... Nd7 {[%emt 0:08:01]} 19. Ne4 {[%emt 0:04:34]} d5 {[%emt 0:01:12]} ({Better is} 19... Rc8 $14) 20. cxd5 {[%emt 0:00:12]} Bxd5 {[%emt 0:01:13]} 21. Bd3 {[%emt 0:02:17]} Qb7 {[%emt 0:08:18]} 22. Rc2 {[%emt 0:03:54]} Nc5 {[%emt 0:04:37]} 23. Nxc5 {[%emt 0:00:57]} bxc5 {[%emt 0:04:59]} 24. Bxc5 {[%emt 0:03:34]} Bxc5+ {[%emt 0:00:43]} 25. Rxc5 {[%emt 0:00:05]} Qb6 {[%emt 0:02:06]} 26. Rfc1 {[%emt 0:00:44]} Rc8 {[%emt 0:01:26]} 27. Qf2 {[%emt 0:00:12]} Rb8 {[%emt 0:03:51]} ({Black should play} 27... Rxc5 $14 28. Qxc5 Qb7) 28. b4 {[%emt 0:00:40]} Nc7 $2 {[%emt 0:01:12]} (28... Rd8 29. Be2 Qb7) 29. Rxc7 {[%emt 0:00:24]} Qxf2+ {[%emt 0:00:55]} 30. Kxf2 {[%emt 0:00:07]} Rb6 {[%emt 0:01:12]} 31. Rc8 {[%emt 0:01:00]} Bb7 {[%emt 0:02:22]} 32. Rxf8+ {[%emt 0:01:08]} Kxf8 {[%emt 0:00:32]} 33. Nd4 {[%emt 0:02:37]} g6 {[%emt 0:00:32]} 34. Be2 {[%emt 0:00:58]} Kg7 {[%emt 0:01:51]} 35. Bf3 {[%emt 0:01:28]} Bd5 {[%emt 0:01:50]} 36. Bxd5 {[%emt 0:00:41]} exd5 {[%emt 0:00:09]} 37. Rc6 {[%emt 0:00:30]} Rxc6 {[%emt 0:00:42]} 38. Nxc6 {[%emt 0:00:06]} Kf8 {[%emt 0:00:17]} 39. Ke3 {[%emt 0:00:12]} Ke8 {[%emt 0:00:25]} 40. Kd4 {[%emt 0:00:06]} Kd7 {[%emt 0:30:45]} 41. Nb8+ {[%emt 0:30:15]} Kc7 {[%emt 0:00:38]} 42. Nxa6+ {[%emt 0:00:10]} Kb6 {[%emt 0:00:35]} 43. Nc5 {[%emt 0:00:24]} Kc6 {[%emt 0:00:28]} 44. a4 {[%emt 0:00:05]} g5 {[%emt 0:00:59]} 45. f5 {[%emt 0:00:21]} h5 {[%emt 0:00:34]} 46. b5+ {[%emt 0:00:09]} Kb6 {[%emt 0:00:26]} 47. Kxd5 {[%emt 0:00:17]} h4 {[%emt 0:00:30]} 48. h3 {[%emt 0:00:08]} g4 {[%emt 0:00:24]} 49. hxg4 {[%emt 0:00:07]} h3 {[%emt 0:00:16]} 50. gxh3 {[%emt 0:00:05]} Ka5 {[%emt 0:00:28]} 51. Kc4 {[%emt 0:01:04]} Kb6 {[%emt 0:00:16]} 52. Nb3 {[%emt 0:00:22]} Kb7 {[%emt 0:00:13]} 53. Kc5 {[%emt 0:00:23]} Kc7 {[%emt 0:00:32]} 54. a5 {[%emt 0:00:15]} Kb7 {[%emt 0:00:10]} 55. a6+ {[%emt 0:00:47]} Ka7 {[%emt 0:00:23]} 56. Kc6 {[%emt 0:00:06]} Kb8 {[%emt 0:00:21]} 57. b6 {[%emt 0:00:20]} Ka8 {[%emt 0:00:21]} 58. Kc7 {[%emt 0:01:02]} f6 {[%emt 0:00:32]} 59. Nd4 {[%emt 0:00:11]} (59. b7+ $142 Ka7 60. b8=Q+ Kxa6 61. Qb7#) 59... fxe5 {[%emt 0:00:14]} 60. Nc6 {[%emt 0:00:05]} 1-0

[Event "9. Korbacher Open 2017"]
[Site "Korbach"]
[Date "2017.10.19"]
[Round "1"]
[White "Nemetz, Markus"]
[Black "Ohst, Holger"]
[Result "1/2-1/2"]
[ECO "E80"]
[WhiteElo "1951"]
[BlackElo "1986"]
[Annotator "NA RC"]
[PlyCount "110"]
[EventDate "2017.??.??"]
[EventType "swiss"]
[EventCountry "GER"]
[SourceTitle "playchess.com"]
[Source "ChessBase"]
[SourceQuality "1"]
[TimeControl "40/5400+30:1800+30"]

{[%evp 11,107,31,32,32767,46,33,84,80,72,76,76,72,73,61,209,196,189,134,200,168,186,179,204,196,205,201,197,32767,193,187,194,167,189,32767,191,189,214,128,139,129,125,126,131,141,136,108,137,105,118,107,170,154,192,206,227,243,250,202,216,181,181,183,189,189,279,32767,200,0,0,32767,32767,32767,0,0,0,0,0,0,0,0,0,0,0,0,0,0,0,0,0,0,0,0,0,0,0,0,0,0]} 1. d4 {[%emt 0:00:00]} Nf6 {[%emt 0:00:38]} 2. c4 {[%emt 0:00:00]} g6 {[%emt 0:00:53]} 3. Nc3 {[%emt 0:00:00]} Bg7 {[%emt 0:00:08]} 4. e4 {[%emt 0:00:00]} d6 {[%emt 0:00:01]} 5. f3 {[%emt 0:00:05]} c5 {[%emt 0:05:30]} 6. d5 {[%emt 0:00:56]} O-O {[%emt 0:06:47]} 7. Bg5 {[%emt 0:03:17]} h6 {[%emt 0:05:28]} 8. Be3 {[%emt 0:00:14]} Na6 {[%emt 0:07:33]} 9. Qd2 {[%emt 0:00:59] E81: King's Indian: Sämisch: 6th move deviations (including 6 Be3 c6)} Kh7 {[%emt 0:00:14]} 10. Nge2 {[%emt 0:01:21]} Nc7 {[%emt 0:03:43] LiveBook: 4 Games} 11. Ng3 {[%emt 0:07:00]} e6 {[%emt 0:04:40]} 12. dxe6 $146 {[%emt 0:04:20]} ({Predecessor:} 12. Be2 exd5 13. cxd5 Bd7 14. a4 Rb8 15. O-O Qe7 16. f4 Bg4 {1-0 (30) Wasdahl,D (2065)-Vigorito,D (2420) Las Vegas 1997}) 12... fxe6 {[%emt 0:05:01]} ({Better is} 12... Nxe6 $14 13. O-O-O b6) 13. Rd1 {[%emt 0:00:44]} Nfe8 {[%emt 0:16:26] [#]} 14. Bxc5 $1 {[%emt 0:08:05]} Rf7 {[%emt 0:03:05]} (14... Nd5 $16) 15. Bd4 {[%emt 0:08:33]} ({Don't play} 15. Bxd6 $6 Nxd6 16. c5 (16. Qxd6 $2 Rd7 $19) 16... Be5 $16) 15... e5 {[%emt 0:09:01]} 16. Be3 {[%emt 0:00:59]} Qh4 {[%emt 0:04:41]} 17. Bd3 {[%emt 0:07:51]} Ne6 {[%emt 0:02:23]} 18. O-O {[%emt 0:06:59]} Nf4 {[%emt 0:05:15]} 19. Rf2 {[%emt 0:02:48]} Be6 {[%emt 0:00:37]} 20. Nd5 {[%emt 0:04:07]} Bxd5 {[%emt 0:01:28]} 21. cxd5 {[%emt 0:00:45]} Qd8 {[%emt 0:06:34]} 22. Bf1 {[%emt 0:01:14]} h5 {[%emt 0:04:36]} 23. Ne2 {[%emt 0:01:41]} Qf6 {[%emt 0:05:33]} 24. Nxf4 {[%emt 0:01:29]} (24. Nc1 $18) 24... exf4 {[%emt 0:00:02]} 25. Bd4 {[%emt 0:00:10]} Qxd4 {[%emt 0:00:14]} 26. Qxd4 {[%emt 0:00:08]} Bxd4 {[%emt 0:00:03]} 27. Rxd4 {[%emt 0:00:09]} Rc8 {[%emt 0:00:02]} 28. Rc4 {[%emt 0:00:53]} Rfc7 {[%emt 0:00:10]} 29. Rxc7+ {[%emt 0:00:10]} Rxc7 {[%emt 0:00:01]} 30. Bd3 {[%emt 0:00:26]} Rc1+ {[%emt 0:00:26]} (30... h4 $16 31. g3 hxg3 32. hxg3 fxg3) 31. Rf1 {[%emt 0:00:15]} Rc5 {[%emt 0:00:06]} 32. g3 {[%emt 0:01:00]} fxg3 {[%emt 0:00:28]} 33. hxg3 {[%emt 0:00:04]} Kg7 {[%emt 0:00:23]} 34. Kg2 {[%emt 0:01:27]} Nf6 {[%emt 0:01:21]} 35. Rf2 {[%emt 0:01:28]} Nd7 {[%emt 0:01:14]} 36. Rc2 {[%emt 0:02:16]} Kf6 {[%emt 0:00:02]} 37. f4 {[%emt 0:01:37]} Ra5 {[%emt 0:01:11]} (37... Rxc2+ $142 38. Bxc2 Nb6) 38. a3 {[%emt 0:01:58]} Nc5 {[%emt 0:00:46]} 39. b4 $2 {[%emt 0:02:49]} (39. Bc4 $18 Nd7 40. Kf3) 39... Nxd3 {[%emt 0:00:20]} 40. Rc3 {[%emt 0:01:28]} Nxf4+ {[%emt 0:30:41]} 41. gxf4 {[%emt 0:30:02]} Ra4 $1 {[%emt 0:01:28]} 42. Re3 {[%emt 0:00:44]} a5 $1 {[%emt 0:00:00]} 43. e5+ {[%emt 0:00:00]} Ke7 {[%emt 0:00:00]} 44. Rb3 {[%emt 0:00:00]} axb4 {[%emt 0:00:00]} 45. Rxb4 {[%emt 0:00:00]} Rxb4 {[%emt 0:00:00]} 46. axb4 {[%emt 0:00:00]} dxe5 {[%emt 0:00:00]} 47. fxe5 {[%emt 0:00:00]} g5 {[%emt 0:00:00]} 48. Kg3 {[%emt 0:00:00]} b5 {[%emt 0:00:00]} 49. Kf3 {[%emt 0:00:00]} g4+ {[%emt 0:00:00]} 50. Kf4 {[%emt 0:00:00]} Kd7 {[%emt 0:00:00]} 51. Kg3 {[%emt 0:00:00]} Ke7 {[%emt 0:00:00]} 52. e6 {[%emt 0:00:00]} Kd6 {[%emt 0:00:00]} 53. Kf4 {[%emt 0:00:00]} Ke7 {[%emt 0:00:00]} 54. Ke5 $11 g3 55. d6+ Ke8 1/2-1/2

[Event "9. Korbacher Open 2017"]
[Site "Korbach"]
[Date "2017.10.19"]
[Round "1"]
[White "Hagedorn, Alfons"]
[Black "Hild, Sebastian"]
[Result "0-1"]
[ECO "C57"]
[WhiteElo "1923"]
[BlackElo "1786"]
[Annotator "NA RC"]
[PlyCount "110"]
[EventDate "2017.??.??"]
[EventType "swiss"]
[EventCountry "GER"]
[SourceTitle "playchess.com"]
[Source "ChessBase"]
[SourceQuality "1"]
[TimeControl "40/5400+30:1800+30"]

{[%evp 11,110,66,59,84,87,49,211,32767,32767,71,32767,0,-1,-28,0,-30,-7,-62,-60,-158,-172,-158,-183,-269,-194,-198,-206,-210,-213,-215,-208,-197,-188,-223,-254,32767,-264,-350,-328,-420,-422,-316,-336,-320,-136,-122,-137,-354,-461,-766,-454,-704,-777,-718,-415,-1624,-1907,-1658,-167,-190,-136,-158,-97,32767,-92,32767,32767,32767,32767,-105,-108,-108,-100,-94,-95,-190,-105,-1245,-5081,-29991,-1716,-5620,-5743,-1676,-12833,-29977,-29978,-5193,-29973,-29978,-29964,-29978,-29982,-29982,-12843,-29983,-29983,-29985,-29986,-29986,-29987]} 1. e4 {[%emt 0:00:00]} e5 {[%emt 0:00:08]} 2. Nf3 {[%emt 0:00:00]} Nc6 {[%emt 0:00:02]} 3. Bc4 {[%emt 0:00:00]} Nf6 {[%emt 0:00:43]} 4. Ng5 {[%emt 0:00:42]} d5 {[%emt 0:00:40]} 5. exd5 {[%emt 0:00:08]} Nxd5 {[%emt 0:00:22] [#]} 6. Nxf7 $1 {[%emt 0:00:32]} Kxf7 {[%emt 0:00:27]} 7. Qf3+ {[%emt 0:00:09]} Ke6 $1 {[%emt 0:00:33]} 8. Nc3 {[%emt 0:02:42]} Nce7 {[%emt 0:00:32]} ({Better is} 8... Ncb4 $14) 9. O-O {[%emt 0:02:00]} c6 {[%emt 0:00:24] C57: Two Knights: Wilkes-Barre/Traxler and 4 Ng5 d5 5 exd5, unusual Black 5th moves} 10. d4 {[%emt 0:00:30]} Kd6 {[%emt 0:07:36]} 11. Rd1 $146 {[%emt 0:06:17]} ({Predecessor:} 11. Bg5 $16 Be6 12. Rfe1 exd4 13. Ne4+ Kc7 14. Qg3+ Kb6 15. Qb3+ Kc7 16. Qg3+ Kb6 17. Nd6 {1-0 (26) Zhigalko,S (2671)-Agdestein,S (2602) Doha 2016}) 11... Be6 {[%emt 0:13:46]} 12. Bg5 {[%emt 0:08:18]} Qc8 {[%emt 0:03:49]} 13. dxe5+ {[%emt 0:01:53]} Kc7 {[%emt 0:00:24]} 14. Bxe7 {[%emt 0:18:06]} Nxe7 {[%emt 0:06:58]} 15. Qd3 {[%emt 0:04:58] [#]} (15. Bxe6 $11 Qxe6 16. Rd6 Qxe5 17. Rad1) 15... Ng6 $1 {[%emt 0:04:27]} 16. Bb3 {[%emt 0:06:48]} Be7 {[%emt 0:04:51]} 17. Qe4 {[%emt 0:07:42]} Bxb3 {[%emt 0:04:20]} 18. cxb3 {[%emt 0:00:49]} Qe6 {[%emt 0:00:15]} 19. f4 {[%emt 0:03:28]} Rhf8 {[%emt 0:01:48]} 20. g3 {[%emt 0:03:07]} Rad8 {[%emt 0:03:03]} 21. Rxd8 {[%emt 0:01:53]} Bxd8 {[%emt 0:00:39]} ({Weaker is} 21... Rxd8 22. f5 $11) 22. Rc1 {[%emt 0:04:05]} Kb8 {[%emt 0:00:34]} 23. Rd1 {[%emt 0:02:15]} Bc7 {[%emt 0:04:18]} 24. Rf1 {[%emt 0:04:18]} Qh3 {[%emt 0:06:42]} ({Don't take} 24... Bb6+ 25. Kg2 $19) 25. Rf3 {[%emt 0:05:12]} Ne7 {[%emt 0:14:39]} (25... Bb6+ $2 26. Kh1 $19) 26. Na4 {[%emt 0:01:54]} Rd8 {[%emt 0:01:25]} 27. Rd3 {[%emt 0:01:14]} Qf5 {[%emt 0:06:37]} (27... Re8 $19 {has better winning chances.} 28. Nc5 {[#]} g5 $1 {[%mdl 512]} 29. fxg5 Bb6) 28. Rxd8+ {[%emt 0:03:16]} Bxd8 {[%emt 0:00:01]} 29. Qd4 $2 {[%emt 0:01:05]} (29. Qxf5 $17 {only move.} Nxf5 30. Kf2) 29... Nd5 {[%emt 0:01:17]} ({Nicht} 29... Qb1+ 30. Kg2 $19) 30. Qc5 $2 {[%emt 0:02:05]} (30. Kh1) 30... Be7 {[%emt 0:02:05]} 31. Qd4 {[%emt 0:01:24]} (31. Qf2 $142 Qb1+ 32. Qf1 Qxa2 33. Qd1) 31... Qb1+ {[%emt 0:03:58]} 32. Kg2 {[%emt 0:00:00]} Qe1 {[%emt 0:00:48]} 33. Kf3 $2 {[%emt 0:03:24]} (33. Qf2 Qc1 34. Nc3) 33... Qf1+ {[%emt 0:00:36]} 34. Qf2 {[%emt 0:01:06]} Qxf2+ $2 {[%emt 0:02:31]} (34... Qd3+ 35. Kg2 Ne3+ 36. Qxe3 Qxe3) 35. Kxf2 {[%emt 0:00:01]} Nb4 {[%emt 0:02:47]} 36. a3 {[%emt 0:00:49]} b5 {[%emt 0:00:36]} ({Black should play} 36... Nd3+ $19 37. Ke3 Nc5 38. Nxc5 Bxc5+ 39. Ke4 Kc7) 37. axb4 {[%emt 0:03:50]} bxa4 {[%emt 0:00:25]} 38. bxa4 {[%emt 0:00:04]} Bxb4 {[%emt 0:00:18]} 39. Kf3 {[%emt 0:00:48]} Kc7 {[%emt 0:00:28]} 40. Ke4 {[%emt 0:01:06]} Bc5 {[%emt 0:31:55]} 41. h3 {[%emt 0:03:00]} Kd7 {[%emt 0:00:00]} 42. g4 {[%emt 0:04:05]} Bf2 {[%emt 0:00:00]} 43. Kf5 {[%emt 0:01:29]} Ke7 {[%emt 0:00:00]} 44. Kg5 $2 {[%emt 0:02:54]} (44. b3) 44... Ke6 {[%emt 0:00:00]} 45. h4 {[%emt 0:02:55]} Be3 {[%emt 0:00:00]} (45... Bc5 $142 46. Kh5 Be7 47. b4 Bxb4 48. Kg5 Be7+ 49. Kh5 a5 50. f5+ Kxe5 51. f6 Kxf6 52. g5+ Kf5 53. g6 hxg6#) 46. h5 {[%emt 0:00:46]} h6+ {[%emt 0:00:00]} 47. Kg6 {[%emt 0:00:31]} Bxf4 {[%emt 0:00:00] Kxh6 gxh6} 48. Kxg7 {[%emt 0:00:06]} Kxe5 {[%emt 0:00:00]} 49. Kf7 {[%emt 0:00:16]} Kd6 {[%emt 0:00:00]} 50. Kf6 {[%emt 0:00:18]} Bg5+ {[%emt 0:00:00]} 51. Kf7 {[%emt 0:00:29]} c5 {[%emt 0:00:00]} 52. b3 {[%emt 0:01:55]} a5 {[%emt 0:00:00]} 53. Ke8 {[%emt 0:00:29]} Kc6 {[%emt 0:00:00]} 54. Kf7 {[%emt 0:00:14]} Kd5 {[%emt 0:00:00]} 55. Ke8 {[%emt 0:00:06]} c4 {[%emt 0:00:00]} 0-1

[Event "9. Korbacher Open 2017"]
[Site "Korbach"]
[Date "2017.10.19"]
[Round "1"]
[White "Forgach, Andreas"]
[Black "Heinemann, Ernst"]
[Result "1/2-1/2"]
[ECO "B01"]
[WhiteElo "1851"]
[BlackElo "2099"]
[Annotator "NA RC"]
[PlyCount "38"]
[EventDate "2017.??.??"]
[EventType "swiss"]
[EventCountry "GER"]
[SourceTitle "playchess.com"]
[Source "ChessBase"]
[SourceQuality "1"]
[TimeControl "40/5400+30:1800+30"]

{[%evp 8,38,47,32767,32767,32767,36,0,22,13,94,58,69,32767,32767,32767,32767,11,19,4,181,168,201,158,191,156,204,113,154,135,215,230,370]} 1. e4 {[%emt 0:00:00]} d5 {[%emt 0:00:17]} 2. exd5 {[%emt 0:00:00]} Nf6 {[%emt 0:00:07]} 3. d4 {[%emt 0:00:47]} Bg4 {[%emt 0:00:12]} 4. Be2 {[%emt 0:01:46]} Bxe2 {[%emt 0:02:28]} 5. Nxe2 {[%emt 0:00:45]} Qxd5 {[%emt 0:00:17]} 6. O-O {[%emt 0:01:19]} e6 {[%emt 0:05:36] B01: Scandinavian Defence} (6... Nc6 7. c3 O-O-O 8. Qb3 Qxb3 9. axb3 a6 10. Bf4 e6 11. Nd2 Bd6 12. Nc4 Bxf4 13. Nxf4 Rhe8 14. Rfe1 Nd5 15. Nd3 f6 {1-0 (38) Socko,B (2651)-Laylo,D (2511) Bangkok 2014}) 7. Nbc3 {[%emt 0:02:09]} Qh5 {[%emt 0:02:32]} 8. Bf4 {[%emt 0:06:55]} Bd6 {[%emt 0:02:51]} (8... c6 $11 {keeps the balance.}) 9. Bxd6 {[%emt 0:07:35]} cxd6 {[%emt 0:00:11]} 10. Qd3 {[%emt 0:05:00]} a6 {[%emt 0:02:00]} 11. Ng3 $146 {[%emt 0:01:43]} ({Predecessor:} 11. Qg3 Ke7 12. d5 e5 13. f4 Nbd7 14. fxe5 dxe5 {1-0 (32) Nissen,C (2133)-Heisel,G (2094) Germany 2014}) 11... Qg6 {[%emt 0:03:59]} 12. Nce4 {[%emt 0:04:16]} Nxe4 {[%emt 0:04:38]} 13. Nxe4 {[%emt 0:04:25]} Ke7 $2 {[%emt 0:03:39]} (13... O-O $1 $11 {and Black has nothing to worry.}) 14. Rae1 {[%emt 0:05:40]} Rd8 {[%emt 0:00:51]} 15. f4 {[%emt 0:03:44]} Kf8 {[%emt 0:05:23]} 16. Qa3 {[%emt 0:07:29]} Kg8 {[%emt 0:00:57] [#]} 17. Nxd6 {[%emt 0:02:11]} (17. f5 $1 $18 {[%cal Rf5g6]} exf5 {[#]} 18. Nxd6 $1 {[%mdl 512]}) 17... Nc6 {[%emt 0:01:26]} 18. f5 {[%emt 0:00:57]} ({Don't take} 18. Nxb7 Rdb8 $16) (18. c3 $18) 18... exf5 $18 (18... Qf6 $16 19. c3 (19. Nxb7 Qxd4+ 20. Kh1 Rdb8 $18) 19... e5) 19. Nxf5 Rd7 $2 (19... Kh8 20. c3 f6) 1/2-1/2